fUSD/lending_fUSD_20240419
["ID","MTS","AMOUNT","RATE_DAILY","PERIOD"]
[322930447,1713525663038,1000.0,0.000155,2]
[322930449,1713525778706,1435.03304592,0.00015121,2]
[322930450,1713525778730,1064.96695408,0.00015121,2]
[322930451,1713525805260,2255.32774067,0.00015212,2]
[322930452,1713525853744,639.16823824,0.00015422,2]
[322930453,1713525867510,220.55,0.00012973,2]
[322930454,1713525868008,220.55,0.00015237,2]
[322930455,1713525930071,833.33333,0.0001537,2]
[322930456,1713525963604,657.96,0.0001481,2]
[322930463,1713526000795,555.38,0.0001476,2]
[322930464,1713526009371,150.0,0.000155,2]
[322930465,1713526035607,173.74,0.00014843,2]
[322930468,1713526142380,559.27220846,0.00015422,2]
[322930471,1713526213890,32539.53654268,0.00015121,2]
[322930488,1713526232320,-154.21,0.00015512,2]
[322930489,1713526232329,-999.69392012,0.00015519,2]
[322930494,1713526232379,-1221.13842434,0.00015519,2]
[322930496,1713526232391,-5363.37245381,0.00015519,2]
[322930501,1713526232444,-2977.816823,0.00015519,2]
[322930503,1713526232456,-278.283177,0.0001552,2]
[322930504,1713526232466,-13681.79108481,0.0001552,2]
[322930506,1713526232479,-17771.24999999,0.0001552,2]
[322930508,1713526232490,-930.84734004,0.0001552,2]
[322930510,1713526232499,-194.57630931,0.0001552,2]
[322930512,1713526232510,-325.95261556,0.0001552,2]
[322930514,1713526232520,-1790.3548498,0.0001552,2]
[322930516,1713526232529,-2176.78118277,0.0001552,2]
[322930517,1713526232538,-214.41459298,0.0001552,2]
[322930519,1713526232548,-434.02270858,0.0001552,2]
[322930521,1713526232557,-9446.47673064,0.0001552,2]
[322930527,1713526232610,-429.8742519,0.0001552,2]
[322930532,1713526232662,-10111.23617097,0.0001552,2]
[322930565,1713526239277,-2264.7218312,0.0001552,2]
[322930566,1713526239331,-82953.40449269,0.0001552,2]
[322930567,1713526239340,-1621.8,0.0001552,2]
[322930568,1713526239349,-3955.6756305,0.0001552,2]
[322930569,1713526239359,-4000.0,0.00015521,2]
[322930570,1713526239368,-411.18058741,0.00015521,2]
[322930571,1713526239377,-157.51589342,0.00015521,2]
[322930572,1713526239386,-571.37025484,0.00015521,7]
[322930573,1713526239395,-300.0,0.00015521,2]
[322930574,1713526239406,-300.0,0.00015521,2]
[322930575,1713526239415,-300.0,0.00015521,2]
[322930576,1713526239424,-1000.0,0.00015521,5]
[322930577,1713526239436,-499.99,0.00015521,2]
[322930578,1713526239445,-167979.52341986,0.00015522,2]
[322930581,1713526240848,-46429.37051162,0.00015522,2]
[322930582,1713526240891,-471.3043956,0.00015522,2]
[322930583,1713526240913,-280.62050714,0.00015522,2]
[322930584,1713526240955,-2512.13,0.00015522,2]
[322930585,1713526241473,-334.50747262,0.0001552,2]
[322930586,1713526241484,-221320.70403065,0.00015522,2]
[322930711,1713526246438,-8030.43075655,0.0001552,2]
[322930712,1713526246448,-12647.24071054,0.00015522,2]
[322930713,1713526246460,-3682.2884251,0.00015522,2]
[322930714,1713526246494,-28448.0,0.00015522,2]
[322930715,1713526246552,-31715.73820004,0.00015522,2]
[322930716,1713526246564,-120542.13137139,0.00015522,2]
[322930717,1713526246575,-79691.11918919,0.00015522,2]
[322930718,1713526246586,-349.34030028,0.00015522,2]
[322930719,1713526246623,-457.8562,0.00015522,2]
[322930720,1713526246729,-4658.30700855,0.00015522,2]
[322930721,1713526246740,-1963.972947,0.00015522,2]
[322930724,1713526278803,899.89031,0.0001537,2]
[322930725,1713526302368,150.0,0.000155,2]
[322930726,1713526334966,1250.0,0.00015,2]
[322930727,1713526362474,158.53774905,0.00015366,2]
[322930728,1713526377952,240.0,0.00012904,2]
[322930729,1713526378312,240.0,0.00015168,2]
[322930730,1713526391757,23900.0,0.00015218,2]
[322930731,1713526393111,158.53774906,0.00015366,2]
[322930732,1713526428120,164.96741634,0.00015422,2]
[322930733,1713526430063,794.01,0.00014822,2]
[322930734,1713526443675,706.16360927,0.00015499,2]
[322930735,1713526444881,155.0,0.00015499,2]
[322930736,1713526447100,343.17873024,0.00015499,2]
[322930737,1713526448047,164.43136197,0.00015499,2]
[322930738,1713526448963,200.2042692,0.00015499,2]
[322930739,1713526450868,408.87759889,0.00015499,2]
[322930740,1713526452286,160.96564049,0.00015401,2]
[322930741,1713526460269,155.0,0.00015498,2]
[322930742,1713526503915,50116.33516314,0.00015499,2]
[322930743,1713526526124,11854.40110534,0.00015422,2]
[322930744,1713526548898,200.0,0.000155,5]
[322930745,1713526549137,197.95,0.00014825,2]
[322930746,1713526562476,150.0,0.00015499,2]
[322930747,1713526562650,795.103438,0.00015422,2]
[322930748,1713526584840,1803.1746782,0.0002801,120]
[322930749,1713526594770,1782.92924,0.0001537,2]
[322930750,1713526606618,150.0,0.000155,2]
[322930751,1713526627490,1000.0,0.00014795,2]
[322930753,1713526787226,2500.0,0.000155,2]
[322930754,1713526799519,2500.0,0.000155,2]
[322930755,1713526809240,5000.0,0.000155,2]
[322930756,1713526816912,5000.0,0.000155,2]
[322930757,1713526824794,5000.0,0.000155,2]
[322930758,1713526845668,236.6335643,0.00015499,2]
[322930759,1713526877768,19431.09350024,0.00015499,2]
[322930760,1713526923410,1011.06,0.00015218,2]
[322930761,1713526935266,2235.68297,0.0001537,2]
[322930762,1713526944346,5543.7847875,0.00015369,2]
[322930763,1713526964797,11466.21,0.00014765,2]
[322930764,1713526974059,225.78,0.00012847,2]
[322930765,1713526974396,225.78,0.00015111,2]
[322930766,1713527000088,250.0,0.00015218,2]
[322930768,1713527069566,549.70882601,0.00012174,2]
[322930769,1713527090459,695.71550825,0.0001543,2]
[322930770,1713527114712,150.0,0.00015479,2]
[322930771,1713527140131,200.0,0.00015218,2]
[322930772,1713527161847,505.8801408,0.0001537,2]
[322930774,1713527206361,-150.0,0.00015502,2]
[322930775,1713527249310,-2022.53337105,0.00015505,4]
[322930776,1713527249333,-210.13948893,0.00015512,2]
[322930777,1713527249358,-210.13948893,0.00015512,2]
[322930778,1713527249383,-210.13948893,0.00015512,2]
[322930779,1713527249409,-150.42,0.00015512,2]
[322930780,1713527249434,-150.42,0.00015512,2]
[322930781,1713527249457,-150.42,0.00015512,2]
[322930782,1713527249481,-150.42,0.00015512,2]
[322930783,1713527249505,-150.42,0.00015512,2]
[322930784,1713527249530,-150.42,0.00015512,2]
[322930785,1713527249554,-150.42,0.00015512,2]
[322930786,1713527249578,-150.42,0.00015512,2]
[322930787,1713527249602,-150.42,0.00015512,2]
[322930788,1713527249961,-150.42,0.00015512,2]
[322930789,1713527249986,-150.42,0.00015512,2]
[322930790,1713527250010,-150.42,0.00015512,2]
[322930791,1713527250034,-150.42,0.00015512,2]
[322930792,1713527250058,-150.42,0.00015512,2]
[322930793,1713527250082,-150.42,0.00015512,2]
[322930794,1713527250105,-2356.03750157,0.00015519,2]
[322930795,1713527250128,-4546.27873796,0.0001552,2]
[322930796,1713527250152,-167.0376467,0.0001552,2]
[322930797,1713527250176,-174.03453547,0.0001552,2]
[322930798,1713527250199,-691.62506831,0.0001552,2]
[322930799,1713527250223,-709.37578356,0.0001552,2]
[322930800,1713527250246,-909.06017209,0.0001552,2]
[322930801,1713527250274,-190.15181233,0.0001552,2]
[322930802,1713527250297,-197.14690417,0.0001552,2]
[322930803,1713527299866,214.87324407,0.00015364,2]
[322930804,1713527332803,152.8,0.00015079,2]
[322930807,1713527370951,608.75106971,0.00015421,2]
[322930813,1713527432052,-150.43,0.00015512,2]
[322930814,1713527432061,-150.43,0.00015512,2]
[322930815,1713527432071,-150.43,0.00015512,2]
[322930816,1713527432080,-150.43,0.00015512,2]
[322930817,1713527432089,-150.43,0.00015512,2]
[322930818,1713527432099,-150.43,0.00015512,2]
[322930819,1713527432108,-589.28949907,0.0001552,2]
[322930820,1713527432117,-1122.2840628,0.0001552,2]
[322930821,1713527432126,-701.80829018,0.0001552,2]
[322930822,1713527432136,-199.84105151,0.0001552,2]
[322930823,1713527432145,-408.17490843,0.0001552,2]
[322930824,1713527432154,-373.26381835,0.0001552,2]
[322930825,1713527432163,-163.99096747,0.0001552,2]
[322930826,1713527432173,-254.11589084,0.0001552,2]
[322930827,1713527432182,-156.22471055,0.0001552,2]
[322930828,1713527432193,-505.80212384,0.0001552,2]
[322930829,1713527432224,-375.27002545,0.0001552,2]
[322930830,1713527432245,-240.07518187,0.0001552,2]
[322930831,1713527432255,-634.27069607,0.0001552,2]
[322930832,1713527432266,-1286.9644418,0.0001552,2]
[322930833,1713527432276,-11755.32312929,0.0001552,2]
[322930834,1713527432290,-6399.76730264,0.0001552,2]
[322930835,1713527432345,-1509.0,0.0001552,2]
[322930836,1713527432373,-21852.08785864,0.0001552,2]
[322930837,1713527432434,-830.4911,0.0001552,2]
[322930838,1713527432449,-334.50747262,0.0001552,2]
[322930839,1713527432487,-263.36395507,0.0001552,2]
[322930840,1713527432527,-1099.33301702,0.0001552,2]
[322930841,1713527432554,-652.50185,0.0001552,2]
[322930850,1713527437962,-815.0,0.0001552,2]
[322930858,1713527438027,-54788.60223424,0.0001552,2]
[322930860,1713527438037,-1388.59049396,0.0001552,2]
[322930863,1713527438047,-63188.0495691,0.0001552,2]
[322930865,1713527438057,-1948.5460889,0.0001552,2]
[322930867,1713527438066,-6782.0092433,0.0001552,2]
[322930869,1713527438075,-2868.31551907,0.0001552,2]
[322930872,1713527438099,-5319.43044053,0.0001552,2]
[322930874,1713527438108,-15477.6440704,0.0001552,2]
[322930876,1713527438118,-1038.9175883,0.0001552,2]
[322930878,1713527438128,-2984.4612262,0.0001552,2]
[322930880,1713527438137,-192.53344885,0.00015521,2]
[322930882,1713527438147,-264.96246722,0.00015521,2]
[322930884,1713527438156,-205.99988575,0.00015521,2]
[322930886,1713527438166,-203.79893697,0.00015521,2]
[322930888,1713527438176,-63620.91847983,0.00015521,2]
[322930890,1713527438186,-191.30744206,0.00015521,2]
[322930893,1713527438200,-155.25963709,0.00015521,2]
[322930895,1713527438209,-155.0,0.00015521,2]
[322930897,1713527438219,-155.85959825,0.00015521,2]
[322930899,1713527438228,-268.00161356,0.00015521,2]
[322930901,1713527438237,-208.38643121,0.00015521,2]
[322930903,1713527438246,-264.01498696,0.00015521,2]
[322930905,1713527438255,-683.13738738,0.00015521,2]
[322930907,1713527438265,-427.48317761,0.00015521,2]
[322930909,1713527438275,-156.22374567,0.00015521,2]
[322930911,1713527438285,-155.0,0.00015521,2]
[322930913,1713527438294,-475.34644503,0.00015521,2]
[322930915,1713527438304,-358.22122567,0.00015521,2]
[322930917,1713527438313,-174.63687778,0.00015521,2]
[322930919,1713527438323,-171.06528897,0.00015521,2]
[322930922,1713527438333,-22439.42561553,0.00015521,2]
[322930924,1713527438342,-1297.79891384,0.00015521,2]
[322930926,1713527438352,-249.52796376,0.00015521,2]
[322930928,1713527438361,-300.0,0.00015521,2]
[322930975,1713527438793,-300.0,0.00015521,2]
[322930977,1713527438804,-206.98170683,0.00015521,2]
[322930979,1713527438814,-5841.86877358,0.00015521,2]
[322930981,1713527438823,-1651.47,0.00015521,2]
[322930983,1713527438834,-1000.0,0.00015521,5]
[322930985,1713527438844,-1000.0,0.00015521,5]
[322930987,1713527438853,-180733.83599573,0.00015522,2]
[322930991,1713527438878,-6536.936333,0.00015522,2]
[322930997,1713527438929,-6542.9,0.00015522,2]
[322931072,1713527439563,-653.83,0.00015522,2]
[322931080,1713527439622,-327707.0577808,0.00015522,2]
[322931082,1713527439634,-216407.84070214,0.00015522,2]
[322931084,1713527439646,-6130.98403498,0.00015522,2]
[322931089,1713527439684,-26348.02605745,0.00015522,2]
[322931096,1713527439742,-1000.31587442,0.00015522,2]
[322931109,1713527439854,-2079.47683807,0.00015522,2]
[322931119,1713527439970,-18868.27882434,0.00015522,2]
[322931121,1713527439980,-1245.35424025,0.00015522,2]
[322931146,1713527442633,-13294.11552001,0.00015522,2]
[322931147,1713527442645,-871.77054496,0.00015522,2]
[322931148,1713527442744,-1013.39541464,0.00015522,2]
[322931149,1713527442756,-7160.06582164,0.00015522,2]
[322931150,1713527442913,-6555.782394,0.00015522,2]
[322931151,1713527442924,-360.62888,0.00015522,2]
[322931163,1713527445728,-809.68945,0.00015521,2]
[322931164,1713527445776,-782.56507463,0.00015521,2]
[322931165,1713527445786,-5879.69725542,0.00015522,2]
[322931166,1713527445834,-12182.11968285,0.00015522,2]
[322931167,1713527445846,-25574.52361261,0.00015522,2]
[322931168,1713527445857,-1160.73983021,0.00015522,2]
[322931169,1713527445892,-236495.16889779,0.00015522,2]
[322931176,1713527464728,253.13001085,0.00014744,2]
[322931178,1713527489294,245.84,0.00013087,2]
[322931179,1713527489502,245.84,0.00015351,2]
[322931180,1713527490620,483.64935157,0.00015,2]
[322931181,1713527510280,200.0,0.0001492,2]
[322931182,1713527515151,1078.52160558,0.0001539,2]
[322931183,1713527529565,240.12,0.00014883,2]
[322931184,1713527533400,858.92,0.00014854,2]
[322931185,1713527550531,150.0,0.00018,10]
[322931186,1713527551395,4742.2,0.00014883,2]
[322931187,1713527565404,249.56339398,0.00015422,2]
[322931188,1713527587677,-405.5395096,0.00015515,2]
[322931189,1713527605336,-283.05098436,0.00015514,2]
[322931190,1713527611849,500.0,0.0001478,2]
[322931191,1713527612095,2000.0,0.0001478,2]
[322931192,1713527618311,195.01,0.00014875,2]
[322931193,1713527630882,700.0,0.0001478,2]
[322931194,1713527630946,2761.87,0.00015068,2]
[322931195,1713527631138,2761.87,0.00015342,2]
[322931196,1713527642951,150.0,0.00018,10]
[322931197,1713527670711,150.05423398,0.00018,10]
[322931199,1713527694375,200.55432358,0.00018,10]
[322931200,1713527700073,166.375596,0.00015422,2]
[322931201,1713527734200,840.0,0.0001478,2]
[322931202,1713527759175,1248.2369,0.00015422,2]
[322931203,1713527803137,154.17258646,0.0001537,2]
[322931204,1713527803160,121.42054354,0.0001537,2]
[322931206,1713527849466,500.0,0.0001486,2]
[322931207,1713527869986,532.65718597,0.00015428,2]
[322931208,1713527881007,11259.61328492,0.00015422,2]
[322931209,1713527902440,392.47,0.00014748,2]
[322931211,1713527949388,154.17258646,0.00015422,2]
[322931212,1713527983001,150.0,0.00014731,2]
[322931213,1713527983025,50.0,0.00014731,2]
[322931214,1713528031062,150.0,0.00014722,2]
[322931215,1713528031085,280.54105723,0.00014722,2]
[322931216,1713528031112,141.73894277,0.00014722,2]
[322931217,1713528042660,150.0,0.00011785,2]
[322931218,1713528042682,97.82015446,0.00011785,2]
[322931219,1713528044909,52.17984554,0.00015423,2]
[322931220,1713528044930,97.82015446,0.00015423,2]
[322931221,1713528046228,52.17984554,0.000155,2]
[322931222,1713528046250,150.0,0.000155,2]
[322931223,1713528046272,150.0,0.000155,2]
[322931224,1713528046295,647.82015446,0.000155,2]
[322931225,1713528062951,222.52540556,0.00012804,2]
[322931226,1713528062972,23.00459444,0.00012804,2]
[322931227,1713528063179,126.99540556,0.00015068,2]
[322931228,1713528063201,118.53459444,0.00015068,2]
[322931229,1713528152748,1250.0,0.00015,2]
[322931230,1713528159231,150.0,0.0001537,2]
[322931231,1713528159254,150.0,0.0001537,2]
[322931232,1713528159274,150.0,0.0001537,2]
[322931233,1713528159295,150.0,0.0001537,2]
[322931234,1713528159316,150.0,0.0001537,2]
[322931235,1713528159336,150.0,0.0001537,2]
[322931236,1713528159359,150.0,0.0001537,2]
[322931237,1713528159383,813.06914,0.0001537,2]
[322931238,1713528163886,150.0,0.00014647,2]
[322931239,1713528163911,40.69,0.00014647,2]
[322931240,1713528164414,109.31,0.0001472,2]
[322931241,1713528164436,81.38,0.0001472,2]
[322931244,1713528204755,150.0,0.00015422,2]
[322931245,1713528204775,150.0,0.00015422,2]
[322931246,1713528204798,150.0,0.00015422,2]
[322931247,1713528204819,150.0,0.00015422,2]
[322931248,1713528204840,150.0,0.00015422,2]
[322931249,1713528204860,150.0,0.00015422,2]
[322931250,1713528204882,150.0,0.00015422,2]
[322931251,1713528204902,150.0,0.00015422,2]
[322931252,1713528204924,150.0,0.00015422,2]
[322931253,1713528204945,150.0,0.00015422,2]
[322931254,1713528204965,150.0,0.00015422,2]
[322931255,1713528204987,150.0,0.00015422,2]
[322931256,1713528205012,150.0,0.00015422,2]
[322931257,1713528205035,150.0,0.00015422,2]
[322931258,1713528205056,150.0,0.00015422,2]
[322931259,1713528205078,150.0,0.00015422,2]
[322931260,1713528205099,150.0,0.00015422,2]
[322931261,1713528205119,150.0,0.00015422,2]
[322931262,1713528205139,150.0,0.00015422,2]
[322931263,1713528205160,150.0,0.00015422,2]
[322931264,1713528205180,150.0,0.00015422,2]
[322931265,1713528205201,150.0,0.00015422,2]
[322931266,1713528205223,150.0,0.00015422,2]
[322931267,1713528205248,150.0,0.00015422,2]
[322931268,1713528205270,150.0,0.00015422,2]
[322931269,1713528205292,150.0,0.00015422,2]
[322931270,1713528205311,150.0,0.00015422,2]
[322931271,1713528205334,150.0,0.00015422,2]
[322931272,1713528205355,180.06376985,0.00015422,2]
[322931273,1713528205379,12912.14023015,0.00015422,2]
[322931275,1713528226215,382.15017822,0.00015,2]
[322931276,1713528227161,301.47281172,0.0001472,2]
[322931277,1713528242925,328.0,0.00014725,2]
[322931279,1713528322745,185.412982,0.00015342,2]
[322931280,1713528339559,1279.3347,0.00015422,2]
[322931289,1713528474816,40024.2792,0.00015422,2]
[322931290,1713528502968,87712.1099,0.00015422,2]
[322931291,1713528504463,381.18,0.00014694,2]
[322931292,1713528507288,229.66094,0.0001537,2]
[322931293,1713528514077,43561.4584,0.00015422,2]
[322931295,1713528525779,2531.72,0.00015068,2]
[322931296,1713528526039,2531.72,0.00015342,2]
[322931297,1713528558193,500.0,0.00015422,2]
[322931298,1713528579981,220.97,0.00012819,2]
[322931299,1713528580244,220.97,0.00015083,2]
[322931316,1713528620385,166.871684,0.00015342,2]
[322931317,1713528628975,40024.2792,0.00015422,2]
[322931325,1713528631765,-405.5395096,0.00015504,2]
[322931327,1713528631775,-444.4604904,0.00015505,2]
[322931328,1713528631786,-1497.973014,0.00015505,2]
[322931329,1713528631796,-1775.8578558,0.00015506,2]
[322931330,1713528631805,-313.62935236,0.00015512,2]
[322931331,1713528631814,-150.65,0.00015512,2]
[322931332,1713528631824,-150.65,0.00015512,2]
[322931333,1713528631833,-150.65,0.00015512,2]
[322931334,1713528631842,-193.74705986,0.00015517,2]
[322931335,1713528631876,-689.71401106,0.00015517,2]
[322931336,1713528631887,-651.08581171,0.00015517,2]
[322931337,1713528631898,-1915.69850597,0.00015517,2]
[322931338,1713528631907,-1522.8420386,0.00015517,2]
[322931339,1713528631917,-1157.8507532,0.00015517,2]
[322931340,1713528631928,-7093.6463517,0.00015517,2]
[322931341,1713528631938,-5454.1491297,0.00015517,2]
[322931342,1713528631947,-2554.0545138,0.00015517,2]
[322931343,1713528631957,-2018.1069116,0.00015517,2]
[322931344,1713528631967,-3978.5670215,0.00015517,2]
[322931345,1713528631976,-53537.0910447,0.00015517,2]
[322931346,1713528631985,-2260.49623226,0.0001552,2]
[322931347,1713528631995,-155.0,0.0001552,2]
[322931348,1713528632005,-325.37654758,0.0001552,2]
[322931349,1713528632019,-645.4650384,0.0001552,2]
[322931350,1713528632029,-584.38047657,0.0001552,2]
[322931351,1713528632038,-237.72893047,0.0001552,2]
[322931352,1713528632048,-155.0,0.0001552,2]
[322931353,1713528632057,-1124.54614284,0.0001552,2]
[322931373,1713528632334,-1510.0958995,0.0001552,5]
[322931374,1713528632410,-898.51691812,0.00015521,2]
[322931375,1713528632419,-318.22248877,0.00015521,2]
[322931376,1713528632428,-300.0,0.00015521,2]
[322931377,1713528632438,-499.99,0.00015521,2]
[322931378,1713528632447,-1638.53,0.00015521,2]
[322931379,1713528632457,-300.0,0.00015521,2]
[322931380,1713528632467,-150.99,0.00015521,2]
[322931381,1713528632477,-1177.20425116,0.00015521,2]
[322931382,1713528632486,-12754.87707178,0.00015522,2]
[322931383,1713528632531,-1197.42548169,0.00015522,2]
[322931384,1713528632543,-650.44799404,0.00015522,2]
[322931385,1713528632595,-14384.000001,0.00015522,2]
[322931386,1713528632624,-3641.25315,0.00015522,2]
[322931409,1713528638286,-1292.04521374,0.00015522,2]
[322931416,1713528638321,-867.8702897,0.00015522,2]
[322931425,1713528638360,-3757.48353988,0.00015522,2]
[322931429,1713528638372,-2089.59887363,0.00015522,2]
[322931588,1713528639807,-7254.50334176,0.00015522,2]
[322931591,1713528639819,-4151.25026103,0.00015522,2]
[322931610,1713528639986,-487.06447275,0.00015522,2]
[322931612,1713528639998,-1562.39291835,0.00015522,2]
[322931625,1713528640106,-7312.01116813,0.00015522,2]
[322931692,1713528642862,-19787.76687358,0.00015522,2]
[322931694,1713528642929,-931.5,0.00015522,2]
[322931696,1713528643114,-52375.019407,0.00015522,2]
[322931697,1713528643126,-189446.92725061,0.00015522,2]
[322931702,1713528646465,-3254.19703,0.00015522,2]
[322931703,1713528646503,-6113.1944236,0.00015522,2]
[322931704,1713528646514,-3163.83560312,0.00015522,2]
[322931705,1713528646525,-663.64429499,0.00015522,2]
[322931706,1713528646581,-15914.22876035,0.00015522,2]
[322931707,1713528654777,1000.0,0.00015422,2]
[322931708,1713528672479,164.8864383,0.00015366,2]
[322931709,1713528686032,150.0,0.00015231,2]
[322931710,1713528689654,656.34694831,0.00015422,2]
[322931711,1713528704407,128044.7613,0.00015422,2]
[322931712,1713528709390,1000.0,0.00015422,2]
[322931713,1713528727090,7500.0,0.00015422,2]
[322931714,1713528732109,167.37,0.00014804,2]
[322931715,1713528732305,167.37,0.00015189,2]
[322931716,1713528759883,772.53323901,0.00015189,2]
[322931717,1713528767479,1000.0,0.000282,120]
[322931718,1713528769932,7273.9129605,0.00015189,2]
[322931719,1713528792506,162.41,0.00014642,2]
[322931720,1713528792768,162.41,0.00014649,2]
[322931721,1713528793165,162.41,0.00014655,2]
[322931722,1713528793476,162.41,0.00014662,2]
[322931723,1713528793671,162.41,0.00014669,2]
[322931724,1713528793709,200.0,0.00015397,2]
[322931725,1713528793904,162.41,0.00014675,2]
[322931726,1713528794049,200.0,0.00015398,2]
[322931727,1713528794663,162.41,0.00014682,2]
[322931728,1713528794773,162.41,0.00014689,2]
[322931729,1713528794854,737.6,0.00014625,2]
[322931730,1713528794933,162.41,0.00014695,2]
[322931731,1713528795245,162.41,0.00014702,2]
[322931732,1713528795389,162.41,0.00014709,2]
[322931733,1713528795594,162.41,0.00014715,2]
[322931734,1713528797165,615.01493848,0.00015422,2]
[322931735,1713528798086,1000.0,0.00015397,2]
[322931736,1713528798468,1000.0,0.00015398,2]
[322931737,1713528800087,1000.0,0.00015398,2]
[322931738,1713528805586,22522.2072,0.00015422,2]
[322931739,1713528809113,210.50432826,0.00015397,2]
[322931740,1713528811370,661.84700809,0.00015422,2]
[322931741,1713528811854,200.0,0.00015397,2]
[322931742,1713528812012,200.0,0.00015398,2]
[322931743,1713528814862,181.454037,0.00015397,2]
[322931744,1713528815225,500.0,0.00015398,2]
[322931745,1713528817916,500.0,0.00015397,2]
[322931746,1713528818333,500.0,0.00015398,2]
[322931747,1713528819346,500.0,0.00015398,2]
[322931748,1713528822160,2233.86627307,0.00015422,2]
[322931749,1713528825731,200.0,0.00015398,2]
[322931750,1713528835284,1000.0,0.000282,120]
[322931751,1713528841479,1000.0,0.000155,2]
[322931752,1713528864019,1009.8522411,0.00015422,2]
[322931753,1713528870613,3186.9412,0.00015422,2]
[322931754,1713528872586,3381.28227262,0.00015421,2]
[322931755,1713528877627,1885.15824,0.0001537,2]
[322931756,1713528885036,236.6335643,0.00015369,2]
[322931757,1713528890647,1007.00005574,0.000282,120]
[322931758,1713528892992,1060.25258185,0.000155,2]
[322931759,1713528894260,305.17329774,0.000155,2]
[322931760,1713528894513,15307.80497787,0.000155,2]
[322931761,1713528898902,617.26050281,0.000155,2]
[322931762,1713528903110,150.0,0.000155,2]
[322931763,1713528906768,105891.0826,0.00015422,2]
[322931764,1713528929276,4437.4924,0.0001542,2]
[322931765,1713528936568,410.00995898,0.0001543,2]
[322931766,1713528936766,23341.36448491,0.000155,2]
[322931767,1713528940518,441.23133872,0.0001543,2]
[322931768,1713528952025,1775.8578558,0.00015429,2]
[322931771,1713528954933,3715.15192631,0.00015499,2]
[322931772,1713528960593,647.748,0.00015421,2]
[322931773,1713528961347,200.00824992,0.0001537,2]
[322931774,1713528967598,1060.25258185,0.000155,2]
[322931775,1713528996213,1013.9245869,0.000282,120]
[322931776,1713529001391,673.2348274,0.00015422,2]
[322931777,1713529015837,253.78,0.00014656,2]
[322931778,1713529039380,175.02,0.00015219,2]
[322931780,1713529070880,294.15422582,0.00015422,2]
[322931781,1713529076180,273.33997266,0.00015422,2]
[322931782,1713529093432,207.93,0.00012738,2]
[322931783,1713529094042,207.93,0.00015002,2]
[322931784,1713529101861,2096.1915,0.0001542,2]
[322931785,1713529143171,448.82321826,0.00015422,2]
[322931787,1713529182784,155.0,0.000155,2]
[322931788,1713529185725,155.0,0.000155,2]
[322931789,1713529187282,3774.89492129,0.000155,2]
[322931790,1713529200449,179.80739765,0.00015422,2]
[322931791,1713529201154,249.92152172,0.00015422,2]
[322931793,1713529209988,196.1028172,0.00015422,2]
[322931794,1713529213626,182.22664844,0.00015422,2]
[322931795,1713529218583,574.30357978,0.00015421,2]
[322931796,1713529219537,3715.15192631,0.000155,2]
[322931797,1713529234157,395.3932,0.0001537,2]
[322931798,1713529236805,167.37,0.00014762,2]
[322931799,1713529239750,2178.66211455,0.000155,2]
[322931800,1713529242282,12294.41910102,0.00015422,2]
[322931801,1713529245113,2306.419,0.0001542,2]
[322931802,1713529261808,1000.0,0.000155,2]
[322931803,1713529274972,409.92,0.00014698,2]
[322931804,1713529282800,299.21547884,0.0001543,2]
[322931805,1713529357186,2320.74,0.00015068,2]